fUST/lending_fUST_20250630
["ID","MTS","AMOUNT","RATE_DAILY","PERIOD"]
[368622424,1751243434176,-460.0,0.0001827,2]
[368622425,1751243434187,-460.0,0.0001827,2]
[368622426,1751243434196,-460.0,0.0001827,2]
[368622427,1751243434206,-460.0,0.0001827,2]
[368622428,1751243434216,-590.84,0.0001827,2]
[368622429,1751243434226,-611.32,0.0001827,2]
[368622430,1751243434236,-460.0,0.0001827,2]
[368622431,1751243434245,-854.97,0.0001827,2]
[368622432,1751243434255,-460.0,0.0001827,2]
[368622433,1751243434266,-460.0,0.0001827,2]
[368622434,1751243434278,-460.0,0.0001827,2]
[368622435,1751243434289,-468.0735199,0.0001827,2]
[368622436,1751243434300,-460.0,0.0001827,2]
[368622437,1751243434310,-460.0,0.0001827,2]
[368622438,1751243434320,-460.0,0.0001827,2]
[368622439,1751243434331,-460.0,0.0001827,2]
[368622440,1751243434341,-460.0,0.0001827,2]
[368622441,1751243434351,-460.0,0.0001827,2]
[368622442,1751243434361,-460.0,0.0001827,2]
[368622443,1751243434371,-460.0,0.0001827,2]
[368622444,1751243434382,-460.0,0.0001827,2]
[368622445,1751243434394,-460.0,0.0001827,2]
[368622446,1751243434404,-460.0,0.0001827,2]
[368622447,1751243434414,-460.0,0.0001827,2]
[368622448,1751243434424,-458.74,0.0001827,2]
[368622449,1751243434434,-460.0,0.00018271,2]
[368622450,1751243434444,-460.0,0.00018271,2]
[368622451,1751243434454,-262.26450337,0.00018271,2]
[368622452,1751243434463,-460.0,0.00018271,2]
[368622453,1751243434473,-460.0,0.00018271,2]
[368622454,1751243434483,-462.64775211,0.00018271,2]
[368622455,1751243434494,-460.0,0.00018271,2]
[368622456,1751243434503,-460.0,0.00018271,2]
[368622457,1751243434512,-460.0,0.00018271,2]
[368622458,1751243434522,-500.0,0.00018271,2]
[368622459,1751243434531,-469.88235906,0.00018271,2]
[368622460,1751243434542,-460.0,0.00018271,2]
[368622461,1751243434551,-460.0,0.00018271,2]
[368622462,1751243434562,-460.0,0.00018271,2]
[368622463,1751243434572,-581.25008691,0.00018271,2]
[368622464,1751243434581,-460.0,0.00018271,2]
[368622465,1751243434591,-460.0,0.00018271,2]
[368622466,1751243434601,-460.0,0.00018271,2]
[368622467,1751243434612,-460.0,0.00018271,2]
[368622468,1751243434625,-417.73651878,0.00018271,2]
[368622469,1751243434635,-460.0,0.00018271,2]
[368622470,1751243434644,-460.0,0.00018271,2]
[368622471,1751243434655,-275.85355329,0.00018271,2]
[368622472,1751243434664,-4491.37,0.00018271,2]
[368622473,1751243434673,-460.0,0.00018271,2]
[368622474,1751243434683,-1383.19,0.00018271,2]
[368622475,1751243434694,-460.0,0.00018271,2]
[368622476,1751243434704,-460.0,0.00018271,2]
[368622477,1751243434713,-460.0,0.00018271,2]
[368622478,1751243434722,-460.0,0.00018271,2]
[368622479,1751243434732,-1710.0,0.00018271,2]
[368622480,1751243434741,-460.0,0.00018271,2]
[368622481,1751243434750,-460.0,0.00018271,2]
[368622482,1751243434760,-1030.09,0.00018271,2]
[368622483,1751243434769,-941.1,0.00018271,2]
[368622484,1751243434779,-460.0,0.00018271,2]
[368622485,1751243434788,-460.0,0.00018271,2]
[368622486,1751243434798,-460.0,0.00018271,2]
[368622487,1751243434807,-460.0,0.00018271,2]
[368622488,1751243434816,-187.76656593,0.00018271,2]
[368622489,1751243434826,-1097.79,0.00018271,2]
[368622490,1751243434835,-460.0,0.00018271,2]
[368622491,1751243434845,-460.0,0.00018271,2]
[368622492,1751243434855,-460.0,0.00018271,2]
[368622493,1751243434864,-1689.34,0.00018271,2]
[368622494,1751243434874,-460.0,0.00018271,2]
[368622495,1751243434884,-157.28162691,0.00018271,2]
[368622496,1751243434894,-556.96,0.00018271,2]
[368622497,1751243434904,-460.0,0.00018271,2]
[368622498,1751243434914,-460.0,0.00018271,2]
[368622500,1751243434925,-492.11,0.00018271,2]
[368622502,1751243434936,-433.17738751,0.00018271,2]
[368622504,1751243434946,-1663.77,0.00018271,2]
[368622506,1751243434955,-1384.08,0.00018271,2]
[368622508,1751243434966,-590.94,0.00018271,2]
[368622510,1751243434976,-460.0,0.00018271,2]
[368622512,1751243434986,-152.405174,0.00018271,2]
[368622513,1751243434995,-460.0,0.00018271,2]
[368622514,1751243435005,-460.0,0.00018271,2]
[368622515,1751243435015,-714.63,0.00018271,2]
[368622516,1751243435024,-307.23620445,0.00018271,2]
[368622517,1751243435033,-4624.13,0.00018271,2]
[368622518,1751243435043,-460.0,0.00018271,2]
[368622519,1751243435052,-546.83178283,0.00018271,2]
[368622520,1751243435061,-500.0,0.00018272,2]
[368622521,1751243435070,-460.0,0.00018272,2]
[368622522,1751243435080,-460.0,0.00018272,2]
[368622523,1751243435090,-460.0,0.00018272,2]
[368622524,1751243435099,-460.0,0.00018272,2]
[368622525,1751243435108,-460.0,0.00018272,2]
[368622526,1751243435116,-460.0,0.00018272,2]
[368622527,1751243435126,-460.0,0.00018272,2]
[368622528,1751243435135,-462.48138794,0.00018272,2]
[368622529,1751243435144,-460.0,0.00018272,2]
[368622530,1751243435154,-606.49532367,0.00018272,2]
[368622531,1751243435163,-460.0,0.00018272,2]
[368622532,1751243435172,-460.0,0.00018272,2]
[368622533,1751243435182,-460.0,0.00018272,2]
[368622534,1751243435191,-460.0,0.00018272,2]
[368622535,1751243435200,-460.0,0.00018272,2]
[368622536,1751243435209,-460.0,0.00018272,2]
[368622537,1751243435218,-236.68258152,0.00018272,2]
[368622538,1751243435228,-460.0,0.00018272,2]
[368622539,1751243435237,-476.33,0.00018272,2]
[368622540,1751243435247,-460.0,0.00018272,2]
[368622541,1751243435257,-460.0,0.00018272,2]
[368622542,1751243435266,-460.0,0.00018272,2]
[368622543,1751243435276,-460.0,0.00018272,2]
[368622544,1751243435285,-460.0,0.00018272,2]
[368622546,1751243435298,-460.0,0.00018272,2]
[368622548,1751243435308,-460.0,0.00018272,2]
[368622550,1751243435317,-460.0,0.00018272,2]
[368622552,1751243435326,-460.0,0.00018272,2]
[368622554,1751243435336,-460.0,0.00018272,2]
[368622556,1751243435346,-460.0,0.00018272,2]
[368622558,1751243435354,-460.0,0.00018272,2]
[368622560,1751243435364,-460.0,0.00018272,2]
[368622562,1751243435373,-460.0,0.00018272,2]
[368622564,1751243435383,-467.1087756,0.00018272,2]
[368622566,1751243435391,-464.77243366,0.00018272,2]
[368622568,1751243435401,-460.0,0.00018272,2]
[368622570,1751243435410,-460.0,0.00018272,2]
[368622572,1751243435420,-460.0,0.00018272,2]
[368622574,1751243435429,-460.0,0.00018272,2]
[368622576,1751243435438,-480.20217855,0.00018272,2]
[368622578,1751243435447,-692.43,0.00018272,2]
[368622580,1751243435456,-583.81,0.00018272,2]
[368622582,1751243435466,-460.0,0.00018272,2]
[368622584,1751243435475,-357.30282231,0.00018272,2]
[368622586,1751243435484,-880.01,0.00018272,2]
[368622588,1751243435493,-460.0,0.00018272,2]
[368622590,1751243435502,-460.0,0.00018272,2]
[368622592,1751243435511,-460.0,0.00018272,2]
[368622594,1751243435520,-460.0,0.00018272,2]
[368622596,1751243435531,-539.22,0.00018272,2]
[368622598,1751243435542,-460.0,0.00018272,2]
[368622600,1751243435551,-460.0,0.00018272,2]
[368622602,1751243435560,-462.12800727,0.00018272,2]
[368622604,1751243435570,-1330.94,0.00018272,2]
[368622606,1751243435579,-460.0,0.00018272,2]
[368622608,1751243435588,-460.0,0.00018272,2]
[368622610,1751243435597,-460.0,0.00018272,2]
[368622612,1751243435606,-460.0,0.00018272,2]
[368622614,1751243435619,-460.0,0.00018272,2]
[368622616,1751243435628,-460.0,0.00018272,2]
[368622618,1751243435637,-460.0,0.00018274,2]
[368622620,1751243435647,-268.4011687,0.00018274,2]
[368622622,1751243435657,-460.0,0.00018274,2]
[368622624,1751243435666,-460.0,0.00018274,2]
[368622626,1751243435676,-460.0,0.00018274,2]
[368622628,1751243435686,-460.0,0.00018274,2]
[368622630,1751243435696,-352.46589784,0.00018274,2]
[368622632,1751243435707,-460.0,0.00018274,2]
[368622634,1751243435716,-392.85289509,0.00018274,2]
[368622636,1751243435725,-305.20686427,0.00018274,2]
[368622638,1751243435734,-460.0,0.00018274,2]
[368622640,1751243435744,-460.0,0.00018274,2]
[368622642,1751243435753,-460.0,0.00018274,2]
[368622644,1751243435762,-460.0,0.00018274,2]
[368622646,1751243435771,-460.0,0.00018274,2]
[368622648,1751243435780,-639.55,0.00018274,2]
[368622650,1751243435790,-460.0,0.00018274,2]
[368622651,1751243435799,-460.0,0.00018274,2]
[368622653,1751243435808,-460.0,0.00018274,2]
[368622655,1751243435817,-460.0,0.00018274,2]
[368622657,1751243435827,-455.7281,0.00018274,2]
[368622658,1751243435836,-461.72499598,0.00018274,2]
[368622659,1751243435845,-460.0,0.00018274,2]
[368622660,1751243435855,-460.0,0.00018274,2]
[368622661,1751243435871,-460.0,0.00018274,2]
[368622662,1751243435881,-460.0,0.00018274,2]
[368622663,1751243435890,-460.0,0.00018274,2]
[368622664,1751243435900,-460.0,0.00018274,2]
[368622665,1751243435909,-152.32570367,0.00018274,2]
[368622666,1751243435919,-460.0,0.00018274,2]
[368622667,1751243435929,-460.0,0.00018274,2]
[368622668,1751243435939,-460.0,0.00018275,2]
[368622669,1751243435948,-439.28564026,0.00018275,2]
[368622670,1751243435958,-460.0,0.00018275,2]
[368622671,1751243435967,-305.65780778,0.00018275,2]
[368622672,1751243435977,-460.0,0.00018275,2]
[368622673,1751243435986,-460.9824219,0.00018275,2]
[368622674,1751243435995,-606.50134723,0.00018275,2]
[368622675,1751243436004,-460.0,0.00018275,2]
[368622676,1751243436014,-460.0,0.00018275,2]
[368622677,1751243436023,-460.0,0.00018275,2]
[368622678,1751243436033,-460.0,0.00018275,2]
[368622679,1751243436045,-460.0,0.00018275,2]
[368622680,1751243436055,-460.0,0.00018275,2]
[368622681,1751243436065,-460.0,0.00018275,2]
[368622682,1751243436075,-460.0,0.00018275,2]
[368622683,1751243436086,-169.05272564,0.00018275,2]
[368622684,1751243436096,-460.0,0.00018275,2]
[368622685,1751243436107,-460.0,0.00018275,2]
[368622686,1751243436116,-460.0,0.00018275,2]
[368622687,1751243436126,-460.0,0.00018275,2]
[368622688,1751243436136,-460.0,0.00018275,2]
[368622689,1751243436146,-460.0,0.00018275,2]
[368622690,1751243436156,-516.89866066,0.00018275,2]
[368622691,1751243436166,-460.0,0.00018275,2]
[368622692,1751243436176,-460.0,0.00018275,2]
[368622693,1751243436186,-460.0,0.00018275,2]
[368622694,1751243436196,-460.0,0.00018275,2]
[368622695,1751243436206,-460.0,0.00018275,2]
[368622696,1751243436215,-460.0,0.00018275,2]
[368622697,1751243436225,-460.0,0.00018275,2]
[368622698,1751243436234,-460.0,0.00018275,2]
[368622699,1751243436244,-460.0,0.00018277,2]
[368622700,1751243436254,-467.94672016,0.00018277,2]
[368622701,1751243436264,-422.70303067,0.00018277,2]
[368622702,1751243436274,-460.0,0.00018277,2]
[368622703,1751243436283,-460.0,0.00018277,2]
[368622704,1751243436296,-460.0,0.00018277,2]
[368622705,1751243436305,-460.0,0.00018277,2]
[368622706,1751243436315,-460.0,0.00018277,2]
[368622707,1751243436325,-429.08357843,0.00018277,2]
[368622708,1751243436335,-537.29330944,0.00018277,2]
[368622709,1751243436344,-460.0,0.00018277,2]
[368622710,1751243436353,-500.0,0.00018278,2]
[368622711,1751243436362,-592.19836105,0.00018282,2]
[368622712,1751243436373,-460.0,0.00018282,2]
[368622713,1751243436383,-460.0,0.00018282,2]
[368622714,1751243436394,-460.0,0.00018282,2]
[368622715,1751243436404,-460.0,0.00018282,2]
[368622716,1751243436414,-467.12049993,0.00018282,2]
[368622717,1751243436424,-460.0,0.00018282,2]
[368622718,1751243436434,-382.09475249,0.0001841,2]
[368622719,1751243436443,-1870.9438249,0.00018446,2]
[368622720,1751243436453,-460.0,0.00018542,2]
[368622721,1751243436462,-460.0,0.00018542,2]
[368622722,1751243436472,-460.0,0.00018542,2]
[368622723,1751243436481,-460.0,0.00018542,2]
[368622724,1751243436491,-469.71,0.00018542,2]
[368622725,1751243436500,-2008.17,0.00018542,2]
[368622726,1751243436509,-460.0,0.00018542,2]
[368622727,1751243436519,-460.0,0.00018542,2]
[368622728,1751243436528,-396.00444185,0.00018543,2]
[368622729,1751243436537,-535.65476728,0.00018543,2]
[368622730,1751243436551,-460.0,0.00018543,2]
[368622731,1751243436560,-460.0,0.00018543,2]
[368622732,1751243436570,-460.0,0.00018543,2]
[368622733,1751243436579,-279.76935242,0.00018543,2]
[368622734,1751243436588,-195.76815156,0.00018543,2]
[368622735,1751243436598,-460.0,0.00018543,2]
[368622736,1751243436607,-1383.26,0.00018543,2]
[368622737,1751243436617,-2980.86,0.00018543,2]
[368622738,1751243436629,-2376.65,0.00018543,2]
[368622739,1751243436639,-526.11,0.00018543,2]
[368622740,1751243436649,-460.0,0.00018543,2]
[368622741,1751243436659,-460.0,0.00018543,2]
[368622742,1751243436672,-460.0,0.00018543,2]
[368622743,1751243436685,-1511.62,0.00018543,2]
[368622744,1751243436697,-2511.68,0.00018543,2]
[368622745,1751243436707,-1951.2,0.00018543,2]
[368622746,1751243436717,-474.98,0.00018543,2]
[368622747,1751243436726,-460.0,0.00018543,2]
[368622748,1751243436735,-1630.89,0.00018543,2]
[368622749,1751243436744,-746.19,0.00018543,2]
[368622750,1751243436754,-460.0,0.00018543,2]
[368622751,1751243436763,-541.6,0.00018543,2]
[368622752,1751243436772,-460.0,0.00018543,2]
[368622753,1751243436781,-460.0,0.00018544,2]
[368622754,1751243436793,-460.0,0.00018544,2]
[368622755,1751243436802,-460.0,0.00018544,2]
[368622756,1751243436811,-460.0,0.00018544,2]
[368622757,1751243436820,-460.0,0.00018544,2]
[368622758,1751243436829,-460.0,0.00018544,2]
[368622759,1751243436839,-460.0,0.00018544,2]
[368622760,1751243436848,-460.0,0.00018544,2]
[368622761,1751243436858,-460.0,0.00018544,2]
[368622762,1751243436867,-379.4789932,0.00018544,2]
[368622763,1751243436876,-460.0,0.00018544,2]
[368622764,1751243436885,-460.0,0.00018544,2]
[368622765,1751243436895,-460.0,0.00018544,2]
[368622766,1751243436905,-460.0,0.00018544,2]
[368622767,1751243436914,-460.0,0.00018544,2]
[368622768,1751243436924,-796.09,0.00018544,2]
[368622769,1751243436933,-1603.49,0.00018544,2]
[368622770,1751243436943,-460.0,0.00018544,2]
[368622771,1751243436952,-460.0,0.00018544,2]
[368622772,1751243436961,-460.0,0.00018544,2]
[368622773,1751243436971,-460.0,0.00018544,2]
[368622774,1751243436980,-460.0,0.00018544,2]
[368622775,1751243436989,-460.0,0.00018544,2]
[368622776,1751243436998,-590.84,0.00018544,2]
[368622777,1751243437009,-611.32,0.00018544,2]
[368622778,1751243437018,-460.0,0.00018544,2]
[368622779,1751243437027,-854.97,0.00018544,2]
[368622780,1751243437037,-460.0,0.00018544,2]
[368622781,1751243437048,-460.0,0.00018544,2]
[368622782,1751243437057,-460.0,0.00018544,2]
[368622783,1751243437067,-460.0,0.00018544,2]
[368622784,1751243437076,-460.0,0.00018545,2]
[368622785,1751243437086,-460.0,0.00018545,2]
[368622786,1751243437095,-460.0,0.00018545,2]
[368622787,1751243437105,-300.93,0.00018545,2]
[368622788,1751243437114,-460.0,0.00018545,2]
[368622789,1751243437123,-155.16035245,0.00018545,2]
[368622790,1751243437132,-4491.37,0.00018545,2]
[368622791,1751243437141,-1383.19,0.00018545,2]
[368622792,1751243437151,-460.0,0.00018545,2]
[368622793,1751243437160,-1710.0,0.00018545,2]
[368622794,1751243437170,-386.91133626,0.00018545,2]
[368622795,1751243437179,-1030.09,0.00018545,2]
[368622796,1751243437188,-941.1,0.00018545,2]
[368622797,1751243437198,-460.0,0.00018545,2]
[368622798,1751243437207,-460.0,0.00018545,2]
[368622799,1751243437216,-460.0,0.00018545,2]
[368622800,1751243437226,-1097.79,0.00018545,2]
[368622801,1751243437235,-460.0,0.00018545,2]
[368622802,1751243437244,-460.0,0.00018545,2]
[368622803,1751243437253,-460.0,0.00018545,2]
[368622804,1751243437262,-1689.34,0.00018545,2]
[368622805,1751243437272,-460.0,0.00018545,2]
[368622806,1751243437281,-556.96,0.00018545,2]
[368622807,1751243437289,-460.0,0.00018545,2]
[368622808,1751243437300,-460.0,0.00018545,2]
[368622809,1751243437310,-492.11,0.00018545,2]
[368622810,1751243437319,-1663.77,0.00018545,2]
[368622811,1751243437329,-1384.08,0.00018545,2]
[368622812,1751243437338,-590.94,0.00018545,2]
[368622813,1751243437347,-460.0,0.00018545,2]
[368622814,1751243437357,-460.0,0.00018545,2]
[368622815,1751243437366,-714.63,0.00018545,2]
[368622816,1751243437376,-4624.13,0.00018545,2]
[368622817,1751243437385,-460.0,0.00018545,2]
[368622818,1751243437394,-460.0,0.00018546,2]
[368622819,1751243437403,-460.0,0.00018546,2]
[368622820,1751243437413,-460.0,0.00018546,2]
[368622821,1751243437422,-460.0,0.00018546,2]
[368622822,1751243437431,-460.0,0.00018546,2]
[368622823,1751243437441,-460.0,0.00018546,2]
[368622824,1751243437450,-460.0,0.00018546,2]
[368622825,1751243437460,-460.0,0.00018546,2]
[368622826,1751243437469,-476.33,0.00018546,2]
[368622827,1751243437479,-460.0,0.00018546,2]
[368622828,1751243437488,-460.0,0.00018546,2]
[368622829,1751243437497,-465.04724828,0.00018546,2]
[368622830,1751243437507,-460.0,0.00018546,2]
[368622831,1751243437516,-460.0,0.00018546,2]
[368622832,1751243437525,-460.0,0.00018546,2]
[368622833,1751243437535,-460.0,0.00018546,2]
[368622834,1751243437545,-460.0,0.00018546,2]
[368622835,1751243437554,-169.29393935,0.00018546,2]
[368622836,1751243437563,-460.0,0.00018546,2]
[368622837,1751243437572,-460.0,0.00018546,2]
[368622838,1751243437582,-460.0,0.00018546,2]
[368622839,1751243437591,-460.0,0.00018546,2]
[368622840,1751243437600,-692.43,0.00018546,2]
[368622841,1751243437610,-583.81,0.00018546,2]
[368622842,1751243437620,-460.0,0.00018546,2]
[368622843,1751243437631,-880.01,0.00018546,2]
[368622844,1751243437640,-460.0,0.00018546,2]
[368622845,1751243437650,-460.0,0.00018546,2]
[368622846,1751243437659,-460.0,0.00018546,2]
[368622847,1751243437669,-539.22,0.00018546,2]
[368622848,1751243437679,-460.0,0.00018546,2]
[368622849,1751243437689,-460.0,0.00018546,2]
[368622850,1751243437833,-1330.94,0.00018546,2]
[368622851,1751243437843,-386.94242314,0.00018546,2]
[368622852,1751243437852,-460.0,0.00018546,2]
[368622853,1751243437862,-460.0,0.00018546,2]
[368622854,1751243437871,-460.0,0.00018546,2]
[368622855,1751243437880,-460.0,0.00018546,2]
[368622856,1751243437890,-460.0,0.00018546,2]
[368622857,1751243437899,-422.95847629,0.00018548,2]
[368622858,1751243437908,-460.0,0.00018548,2]
[368622859,1751243437918,-460.0,0.00018548,2]
[368622860,1751243437927,-460.0,0.00018548,2]
[368622861,1751243437936,-462.68778904,0.00018548,2]
[368622862,1751243437947,-467.55154595,0.00018548,2]
[368622863,1751243437957,-460.0,0.00018548,2]
[368622864,1751243437967,-639.55,0.00018548,2]
[368622865,1751243437976,-369.98760867,0.00018548,2]
[368622866,1751243437986,-460.0,0.00018548,2]
[368622867,1751243437995,-460.0,0.00018548,2]
[368622868,1751243438005,-460.0,0.00018548,2]
[368622869,1751243438015,-460.0,0.00018548,2]
[368622870,1751243438025,-460.0,0.00018549,2]
[368622871,1751243438034,-460.0,0.00018549,2]
[368622872,1751243438045,-460.0,0.00018549,2]
[368622873,1751243438055,-460.0,0.00018549,2]
[368622875,1751243438064,-453.12734487,0.00018549,2]
[368622876,1751243438074,-165.17548333,0.00018549,2]
[368622877,1751243438084,-460.0,0.00018549,2]
[368622878,1751243438093,-460.0,0.00018549,2]
[368622879,1751243438103,-460.0,0.00018549,2]
[368622880,1751243438112,-460.0,0.00018549,2]
[368622881,1751243438122,-460.0,0.00018549,2]
[368622882,1751243438132,-460.0,0.00018549,2]
[368622883,1751243438141,-200.70724699,0.00018551,2]
[368622884,1751243438151,-436.34797716,0.00018551,2]
[368622885,1751243438160,-460.0,0.00018551,2]
[368622886,1751243438170,-460.0,0.00018551,2]
[368622887,1751243438180,-500.0,0.00018552,2]
[368622888,1751243438190,-586.30843324,0.00018556,2]
[368622889,1751243438200,-460.0,0.00018556,2]
[368622890,1751243438209,-460.0,0.00018556,2]
[368622891,1751243438219,-460.0,0.00018556,2]
[368622892,1751243438228,-153.44106337,0.000188,2]
[368622893,1751243438238,-460.0,0.00018816,2]
[368622894,1751243438247,-460.0,0.00018816,2]
[368622895,1751243438257,-460.0,0.00018816,2]
[368622896,1751243438266,-460.0,0.00018816,2]
[368622898,1751243438276,-469.71,0.00018816,2]
[368622899,1751243438286,-2008.17,0.00018816,2]
[368622900,1751243438296,-460.0,0.00018816,2]
[368622901,1751243438306,-693.68932561,0.00018816,2]
[368622902,1751243438315,-460.0,0.00018817,2]
[368622903,1751243438324,-460.0,0.00018817,2]
[368622905,1751243438334,-460.0,0.00018817,2]
[368622907,1751243438343,-1383.26,0.00018817,2]
[368622909,1751243438352,-2980.86,0.00018817,2]
[368622910,1751243438362,-2376.65,0.00018817,2]
[368622911,1751243438371,-526.11,0.00018817,2]
[368622912,1751243438381,-460.0,0.00018817,2]
[368622913,1751243438390,-460.0,0.00018817,2]
[368622914,1751243438399,-1511.62,0.00018817,2]
[368622915,1751243438409,-2511.68,0.00018817,2]
[368622916,1751243438419,-1951.2,0.00018817,2]
[368622917,1751243438428,-474.98,0.00018817,2]
[368622919,1751243438437,-460.0,0.00018817,2]
[368622920,1751243438448,-1630.89,0.00018817,2]
[368622921,1751243438458,-746.19,0.00018817,2]
[368622922,1751243438467,-460.0,0.00018817,2]
[368622923,1751243438476,-541.6,0.00018817,2]
[368622924,1751243438485,-460.0,0.00018817,2]
[368622925,1751243438494,-460.0,0.00018818,2]
[368622926,1751243438503,-460.0,0.00018818,2]
[368622927,1751243438512,-460.0,0.00018818,2]
[368622928,1751243438522,-460.0,0.00018818,2]
[368622929,1751243438531,-389.39979468,0.00018818,2]
[368622930,1751243438540,-460.0,0.00018818,2]
[368622931,1751243438550,-460.0,0.00018818,2]
[368622932,1751243438559,-460.0,0.00018818,2]
[368622933,1751243438569,-460.0,0.00018818,2]
[368622934,1751243438578,-796.09,0.00018818,2]
[368622935,1751243438587,-1603.49,0.00018818,2]
[368622936,1751243438597,-460.0,0.00018818,2]
[368622937,1751243438606,-460.0,0.00018818,2]
[368622938,1751243438617,-460.0,0.00018818,2]
[368622939,1751243438629,-460.0,0.00018818,2]
[368622940,1751243438638,-460.0,0.00018818,2]
[368622941,1751243438647,-590.84,0.00018818,2]
[368622942,1751243438657,-611.32,0.00018818,2]
[368622943,1751243438667,-460.0,0.00018818,2]
[368622944,1751243438676,-854.97,0.00018818,2]
[368622945,1751243438685,-460.0,0.00018818,2]
[368622946,1751243438695,-460.0,0.00018818,2]
[368622947,1751243438704,-460.0,0.00018818,2]
[368622948,1751243438713,-4491.37,0.00018819,2]
[368622949,1751243438722,-1383.19,0.00018819,2]
[368622950,1751243438732,-1710.0,0.00018819,2]
[368622951,1751243438741,-1030.09,0.00018819,2]
[368622952,1751243438751,-941.1,0.00018819,2]
[368622953,1751243438760,-460.0,0.00018819,2]
[368622954,1751243438769,-460.0,0.00018819,2]
[368622955,1751243438779,-460.0,0.00018819,2]
[368622956,1751243438788,-1097.79,0.00018819,2]
[368622957,1751243438798,-460.0,0.00018819,2]
[368622958,1751243438807,-460.0,0.00018819,2]
[368622959,1751243438817,-1689.34,0.00018819,2]
[368622960,1751243438826,-460.0,0.00018819,2]
[368622961,1751243438835,-556.96,0.00018819,2]
[368622962,1751243438845,-460.0,0.00018819,2]
[368622963,1751243438854,-460.0,0.00018819,2]
[368622964,1751243438864,-492.11,0.00018819,2]
[368622965,1751243438873,-1663.77,0.00018819,2]
[368622966,1751243438882,-1384.08,0.00018819,2]
[368622967,1751243438892,-590.94,0.00018819,2]
[368622968,1751243438902,-460.0,0.00018819,2]
[368622969,1751243438911,-460.0,0.00018819,2]
[368622970,1751243438920,-714.63,0.00018819,2]
[368622971,1751243438930,-4624.13,0.00018819,2]
[368622972,1751243438939,-460.0,0.0001882,2]
[368622973,1751243438948,-460.0,0.0001882,2]
[368622974,1751243438958,-460.0,0.0001882,2]
[368622975,1751243438967,-460.0,0.0001882,2]
[368622976,1751243438977,-460.0,0.0001882,2]
[368622977,1751243438987,-460.0,0.0001882,2]
[368622978,1751243438996,-460.0,0.0001882,2]
[368622979,1751243439006,-460.0,0.0001882,2]
[368622980,1751243439016,-476.33,0.0001882,2]
[368622981,1751243439025,-460.0,0.0001882,2]
[368622982,1751243439035,-460.0,0.0001882,2]
[368622983,1751243439044,-460.0,0.0001882,2]
[368622984,1751243439055,-460.0,0.0001882,2]
[368622985,1751243439064,-460.0,0.0001882,2]
[368622986,1751243439074,-460.0,0.0001882,2]
[368622987,1751243439084,-460.0,0.0001882,2]
[368622988,1751243439094,-460.0,0.0001882,2]
[368622989,1751243439104,-460.0,0.0001882,2]
[368622990,1751243439113,-460.0,0.0001882,2]
[368622991,1751243439122,-692.43,0.0001882,2]
[368622992,1751243439132,-583.81,0.0001882,2]